fUST/lending_fUST_20250817
["ID","MTS","AMOUNT","RATE_DAILY","PERIOD"]
[379860260,1755425456757,-480.0,0.0002121,2]
[379860262,1755425456766,-702.67,0.0002121,2]
[379860264,1755425456776,-595.36,0.00021211,2]
[379860265,1755425456786,-615.16,0.00021211,2]
[379860267,1755425456795,-480.0,0.00021211,2]
[379860269,1755425456806,-480.0,0.00021211,2]
[379860271,1755425456816,-480.0,0.00021211,2]
[379860273,1755425456825,-287.06,0.00021211,2]
[379860275,1755425456835,-781.84,0.00021211,2]
[379860277,1755425456844,-480.0,0.00021211,2]
[379860279,1755425456854,-569.55,0.00021211,2]
[379860281,1755425456863,-480.0,0.00021211,2]
[379860283,1755425456873,-464.751278,0.00021211,2]
[379860285,1755425456882,-480.0,0.00021211,2]
[379860287,1755425456892,-6651.06,0.00021211,2]
[379860289,1755425456902,-652.36,0.00021211,2]
[379860291,1755425456912,-480.0,0.00021211,2]
[379860293,1755425456922,-1463.81,0.00021211,2]
[379860295,1755425456932,-480.0,0.00021211,2]
[379860297,1755425456942,-480.0,0.00021211,2]
[379860299,1755425456952,-698.51,0.00021211,2]
[379860301,1755425456962,-151.0,0.00021212,2]
[379860303,1755425456971,-166.353644,0.00021212,2]
[379860305,1755425456983,-300.912384,0.00021212,2]
[379860307,1755425456992,-166.353644,0.00021212,2]
[379860309,1755425457002,-170.624387,0.00021212,2]
[379860311,1755425457011,-170.624387,0.00021212,2]
[379860313,1755425457021,-299.98477465,0.00021212,2]
[379860315,1755425457031,-699.433274,0.00021212,2]
[379860317,1755425457041,-699.433274,0.00021212,2]
[379860319,1755425457050,-480.0,0.00021212,2]
[379860320,1755425457061,-3981.56,0.00021212,2]
[379860322,1755425457071,-6321.03,0.00021212,2]
[379860324,1755425457083,-191.456418,0.00021212,2]
[379860326,1755425457092,-191.456418,0.00021212,2]
[379860328,1755425457101,-537.77641206,0.00021212,2]
[379860330,1755425457111,-654.213815,0.00021212,2]
[379860332,1755425457121,-654.213815,0.00021212,2]
[379860334,1755425457131,-843.13,0.00021212,2]
[379860336,1755425457141,-613.97,0.00021213,2]
[379860338,1755425457152,-490.63,0.00021213,2]
[379860340,1755425457163,-480.0,0.00021213,2]
[379860342,1755425457172,-480.0,0.00021213,2]
[379860344,1755425457181,-2211.58,0.00021213,2]
[379860346,1755425457191,-1490.32,0.00021213,2]
[379860348,1755425457200,-245.467757,0.00021213,2]
[379860350,1755425457210,-245.467757,0.00021213,2]
[379860351,1755425457220,-538.75,0.00021213,2]
[379860353,1755425457230,-212.371471,0.00021214,2]
[379860355,1755425457239,-212.371471,0.00021214,2]
[379860357,1755425457249,-271.928,0.00021214,2]
[379860358,1755425457259,-151.0,0.00021214,2]
[379860360,1755425457268,-301.733932,0.00021214,2]
[379860362,1755425457278,-151.0,0.00021218,2]
[379860364,1755425457287,-151.0,0.00021218,2]
[379860366,1755425457297,-151.0,0.00021218,2]
[379860368,1755425457306,-203.56997802,0.00021218,2]
[379860370,1755425457316,-181.45903553,0.00021218,2]
[379860372,1755425457325,-157.71480021,0.00021218,2]
[379860373,1755425457335,-1547.0,0.00021218,2]
[379860375,1755425457344,-205.05277991,0.00021218,2]
[379860377,1755425457353,-293.269847,0.0002122,2]
[379860379,1755425457363,-3000.0,0.0002122,2]
[379860381,1755425457373,-151.0,0.0002122,2]
[379860383,1755425457383,-151.0,0.0002123,2]
[379860385,1755425457392,-3000.0,0.0002123,2]
[379860387,1755425457401,-186.0,0.00021232,5]
[379860389,1755425457411,-185.39311456,0.00021233,2]
[379860391,1755425457420,-151.0,0.0002124,2]
[379860393,1755425457429,-3000.0,0.0002124,2]
[379860395,1755425457440,-326.0,0.00021245,2]
[379860397,1755425457450,-326.0,0.00021245,2]
[379860399,1755425457460,-166.0,0.00021245,2]
[379860400,1755425457469,-1762.0,0.00021245,2]
[379860402,1755425457479,-1762.0,0.00021245,2]
[379860404,1755425457488,-1762.0,0.00021245,2]
[379860406,1755425457498,-1762.0,0.00021245,2]
[379860408,1755425457507,-1762.0,0.00021245,2]
[379860410,1755425457516,-1762.0,0.00021245,2]
[379860412,1755425457525,-1762.0,0.00021245,2]
[379860413,1755425457534,-1762.0,0.00021245,2]
[379860415,1755425457544,-1762.0,0.00021245,2]
[379860417,1755425457553,-1762.0,0.00021245,2]
[379860431,1755425457691,-1762.0,0.00021245,2]
[379860432,1755425457701,-1762.0,0.00021245,2]
[379860434,1755425457710,-1762.0,0.00021245,2]
[379860436,1755425457720,-1762.0,0.00021245,2]
[379860438,1755425457729,-1762.0,0.00021245,2]
[379860440,1755425457738,-1762.0,0.00021245,2]
[379860442,1755425457747,-1762.0,0.00021245,2]
[379860444,1755425457757,-1762.0,0.00021245,2]
[379860446,1755425457766,-1762.0,0.00021245,2]
[379860448,1755425457775,-1762.0,0.00021245,2]
[379860449,1755425457785,-1762.0,0.00021245,2]
[379860451,1755425457795,-1762.0,0.00021245,2]
[379860453,1755425457804,-1762.0,0.00021245,2]
[379860455,1755425457814,-1762.0,0.00021245,2]
[379860457,1755425457823,-1762.0,0.00021245,2]
[379860459,1755425457834,-1762.0,0.00021245,2]
[379860461,1755425457843,-326.0,0.00021245,2]
[379860463,1755425457852,-1762.0,0.00021245,2]
[379860465,1755425457861,-326.0,0.00021245,2]
[379860466,1755425457871,-1762.0,0.00021245,2]
[379860468,1755425457880,-326.0,0.00021245,2]
[379860470,1755425457890,-1762.0,0.00021245,2]
[379860472,1755425457899,-326.0,0.00021245,2]
[379860474,1755425457909,-1762.0,0.00021245,2]
[379860476,1755425457918,-326.0,0.00021245,2]
[379860478,1755425457927,-1762.0,0.00021245,2]
[379860480,1755425457937,-326.0,0.00021245,2]
[379860482,1755425457946,-1762.0,0.00021245,2]
[379860483,1755425457956,-326.0,0.00021245,2]
[379860485,1755425457965,-1532.77950501,0.00021245,2]
[379860487,1755425457974,-326.0,0.00021245,2]
[379860489,1755425457984,-326.0,0.00021245,2]
[379860491,1755425457993,-326.0,0.00021245,2]
[379860493,1755425458003,-326.0,0.00021245,2]
[379860495,1755425458012,-326.0,0.00021245,2]
[379860497,1755425458021,-326.0,0.00021245,2]
[379860498,1755425458030,-326.0,0.00021245,2]
[379860500,1755425458040,-326.0,0.00021245,2]
[379860502,1755425458049,-326.0,0.00021245,2]
[379860504,1755425458059,-326.0,0.00021245,2]
[379860506,1755425458069,-326.0,0.00021245,2]
[379860508,1755425458082,-276.98896011,0.00021245,2]
[379860510,1755425458091,-326.0,0.00021245,2]
[379860512,1755425458100,-151.0,0.0002125,2]
[379860513,1755425458109,-3000.0,0.0002125,2]
[379860515,1755425458118,-241.0,0.00021257,2]
[379860517,1755425458128,-151.0,0.0002126,2]
[379860519,1755425458137,-205.658192,0.0002126,2]
[379860521,1755425458147,-3000.0,0.0002126,2]
[379860523,1755425458156,-3000.0,0.0002127,2]
[379860525,1755425458166,-372.7,0.00021271,3]
[379860527,1755425458176,-500.0,0.00021273,2]
[379860529,1755425458185,-500.0,0.00021273,2]
[379860531,1755425458195,-500.0,0.00021273,2]
[379860533,1755425458204,-584.71166628,0.00021273,2]
[379860534,1755425458213,-500.0,0.00021273,2]
[379860536,1755425458223,-500.0,0.00021273,2]
[379860538,1755425458233,-157.19157104,0.00021273,2]
[379860540,1755425458244,-158.60998784,0.00021273,2]
[379860542,1755425458254,-341.97175606,0.00021273,2]
[379860544,1755425458264,-158.60123121,0.00021273,2]
[379860546,1755425458273,-160.62292884,0.00021273,2]
[379860548,1755425458282,-160.21822837,0.00021273,2]
[379860550,1755425458292,-500.0,0.00021273,2]
[379860551,1755425458301,-500.0,0.00021273,2]
[379860553,1755425458311,-153.089696,0.00021276,20]
[379860555,1755425458320,-151.0,0.0002128,2]
[379860557,1755425458329,-151.0,0.0002128,2]
[379860559,1755425458338,-3000.0,0.0002128,2]
[379860561,1755425458348,-478.0,0.00021284,2]
[379860563,1755425458358,-3000.0,0.0002129,2]
[379860565,1755425458367,-3000.0,0.000213,2]
[379860567,1755425458378,-153.089696,0.000213,4]
[379860569,1755425458390,-1053.47615083,0.00021306,2]
[379860571,1755425458399,-259.739138,0.0002131,2]
[379860573,1755425458408,-165.944507,0.0002131,2]
[379860574,1755425458418,-165.944501,0.0002131,2]
[379860576,1755425458428,-3000.0,0.0002131,2]
[379860578,1755425458437,-185.39311456,0.00021315,2]
[379860580,1755425458448,-151.741426,0.00021318,2]
[379860582,1755425458457,-151.0,0.00021318,2]
[379860584,1755425458466,-185.267784,0.00021318,2]
[379860586,1755425458476,-185.267775,0.00021318,2]
[379860588,1755425458485,-694.164983,0.00021318,2]
[379860590,1755425458494,-694.164982,0.00021318,2]
[379860592,1755425458503,-207.0,0.0002132,2]
[379860594,1755425458513,-331.867561,0.0002132,2]
[379860595,1755425458522,-331.867561,0.0002132,2]
[379860597,1755425458532,-1425.506809,0.0002132,2]
[379860599,1755425458541,-1425.506813,0.0002132,2]
[379860601,1755425458551,-151.0,0.0002132,2]
[379860603,1755425458561,-3000.0,0.0002132,2]
[379860605,1755425458571,-151.0,0.0002132,2]
[379860607,1755425458580,-151.0,0.0002133,2]
[379860609,1755425458590,-151.0,0.0002133,2]
[379860611,1755425458600,-327.492859,0.0002133,2]
[379860613,1755425458609,-3000.0,0.0002133,2]
[379860615,1755425458619,-153.089696,0.00021339,3]
[379860617,1755425458628,-9793.23849035,0.0002134,2]
[379860619,1755425458638,-37680.46015286,0.0002134,2]
[379860621,1755425458648,-151.0,0.0002134,2]
[379860622,1755425458658,-761.359282,0.0002134,2]
[379860624,1755425458667,-213.33261,0.0002134,2]
[379860626,1755425458676,-213.33261,0.0002134,2]
[379860628,1755425458685,-152.349448,0.0002134,2]
[379860630,1755425458695,-3000.0,0.0002134,2]
[379860632,1755425458704,-152.349448,0.0002134,2]
[379860634,1755425458714,-206.018672,0.0002134,2]
[379860636,1755425458723,-206.018672,0.0002134,2]
[379860638,1755425458732,-151.0,0.0002134,2]
[379860640,1755425458741,-573.466699,0.0002134,2]
[379860641,1755425458750,-573.466699,0.0002134,2]
[379860643,1755425458760,-231.446821,0.0002134,2]
[379860645,1755425458769,-231.446821,0.0002134,2]
[379860647,1755425458778,-151.0,0.0002134,2]
[379860649,1755425458787,-151.0,0.0002134,2]
[379860651,1755425458798,-151.0,0.0002134,2]
[379860653,1755425458809,-1651.275189,0.0002134,2]
[379860655,1755425458819,-1651.275189,0.0002134,2]
[379860657,1755425458828,-543.121224,0.0002134,2]
[379860659,1755425458837,-543.121224,0.0002134,2]
[379860661,1755425458847,-212.371471,0.0002134,2]
[379860663,1755425458856,-212.371471,0.0002134,2]
[379860665,1755425458865,-245.467757,0.0002134,2]
[379860667,1755425458874,-245.467757,0.0002134,2]
[379860669,1755425458884,-151.0,0.0002134,2]
[379860671,1755425458893,-191.456418,0.0002134,2]
[379860673,1755425458903,-191.456418,0.0002134,2]
[379860675,1755425458912,-654.213815,0.0002134,2]
[379860677,1755425458921,-654.213815,0.0002134,2]
[379860679,1755425458931,-3000.0,0.0002135,2]
[379860681,1755425458940,-168.0,0.00021358,2]
[379860682,1755425458950,-151.0,0.0002136,2]
[379860684,1755425458959,-3000.0,0.0002136,2]
[379860686,1755425458968,-3000.0,0.0002137,2]
[379860688,1755425458978,-153.089696,0.00021371,2]
[379860690,1755425458987,-151.0,0.00021373,2]
[379860692,1755425458996,-182.328358,0.00021373,2]
[379860694,1755425459006,-151.0,0.00021374,2]
[379860696,1755425459016,-166.353644,0.00021374,2]
[379860698,1755425459025,-166.353644,0.00021374,2]
[379860700,1755425459034,-170.624387,0.00021374,2]
[379860702,1755425459043,-170.624387,0.00021374,2]
[379860704,1755425459053,-699.433274,0.00021374,2]
[379860705,1755425459063,-699.433274,0.00021374,2]
[379860707,1755425459072,-3000.0,0.0002138,2]
[379860709,1755425459087,-153.089696,0.00021383,7]
[379860711,1755425459096,-480.0,0.00021385,2]
[379860713,1755425459106,-2200.0,0.00021387,2]
[379860714,1755425459115,-500.0,0.00021387,2]
[379860715,1755425459125,-3000.0,0.0002139,2]
[379860716,1755425459134,-168.0,0.00021394,2]
[379860717,1755425459145,-3000.0,0.000214,2]
[379860718,1755425459156,-150.0,0.000214,5]
[379860719,1755425459167,-153.089696,0.000214,5]
[379860720,1755425459176,-3000.0,0.0002141,2]
[379860721,1755425459186,-372.7,0.00021415,3]
[379860722,1755425459195,-3000.0,0.0002142,2]
[379860723,1755425459205,-1379.4691544,0.0002143,2]
[379860735,1755425459420,480.0,0.00019566,2]
[379860743,1755425459489,480.0,0.00019567,2]
[379861251,1755425464880,480.0,0.00019566,2]
[379861263,1755425464983,480.0,0.00019566,2]
[379861267,1755425465017,481.71743281,0.00019568,2]
[379861271,1755425465042,-151.0,0.00019828,2]
[379861273,1755425465051,-151.0,0.00019828,2]
[379861275,1755425465061,-151.0,0.00019828,2]
[379861276,1755425465070,-0.06062248,0.00019828,2]
[379861288,1755425465175,480.0,0.00019566,2]
[379861300,1755425465292,480.0,0.00019568,2]
[379861304,1755425465332,480.0,0.00019566,2]
[379861310,1755425465384,480.0,0.00019565,2]
[379861312,1755425465397,-154.79205899,0.00019828,2]
[379861314,1755425465407,-480.0,0.00019839,2]
[379861316,1755425465417,-337.20794101,0.0001984,2]
[379861319,1755425465434,-142.79205899,0.0001984,2]
[379861321,1755425465443,-480.0,0.0001984,2]
[379861323,1755425465453,-480.0,0.0001984,2]
[379861325,1755425465463,-480.0,0.00019841,2]
[379861326,1755425465472,-481.98468523,0.00019842,2]
[379861328,1755425465482,-168.0,0.00019987,2]
[379861329,1755425465491,-480.0,0.00020113,2]
[379861331,1755425465501,-480.0,0.00020114,2]
[379861333,1755425465510,-480.0,0.00020114,2]
[379861344,1755425465613,-480.0,0.00020115,2]
[379861346,1755425465623,-480.0,0.00020387,2]
[379861348,1755425465632,-480.0,0.00020387,2]
[379861350,1755425465642,-480.0,0.00020388,2]
[379861352,1755425465651,-480.0,0.00020389,2]
[379861354,1755425465661,-3324.29,0.000205,2]
[379861356,1755425465670,-480.0,0.00020661,2]
[379861358,1755425465680,-480.0,0.00020661,2]
[379861359,1755425465689,-480.0,0.00020662,2]
[379861361,1755425465700,-480.0,0.00020662,2]
[379861363,1755425465709,-480.0,0.00020663,2]
[379861365,1755425465719,-480.0,0.00020935,2]
[379861367,1755425465729,-480.0,0.00020935,2]
[379861369,1755425465738,-480.0,0.00020936,2]
[379861371,1755425465748,-480.0,0.00020936,2]
[379861373,1755425465760,-480.0,0.00020937,2]
[379861375,1755425465771,-480.0,0.00021209,2]
[379861377,1755425465780,-480.0,0.00021209,2]
[379861379,1755425465790,-484.52635567,0.0002121,2]
[379861381,1755425465800,-480.0,0.0002121,2]
[379861383,1755425465809,-480.0,0.00021211,2]
[379861385,1755425465820,-1620.5308456,0.0002143,2]
[379861387,1755425465829,-3482.407558,0.0002144,2]
[379861389,1755425465839,-624.12568256,0.00021444,2]
[379861391,1755425465848,-478.0,0.00021466,2]
[379861392,1755425465857,-845.63,0.00021483,2]
[379861394,1755425465867,-414.29892147,0.00021483,2]
[379861396,1755425465876,-480.0,0.00021483,2]
[379861398,1755425465885,-1448.02,0.00021483,2]
[379861400,1755425465895,-2552.16,0.00021483,2]
[379861402,1755425465905,-480.0,0.00021483,2]
[379861404,1755425465914,-3827.42,0.00021483,2]
[379861406,1755425465923,-1483.94,0.00021483,2]
[379861408,1755425465933,-480.0,0.00021483,2]
[379861410,1755425465942,-480.0,0.00021483,2]
[379861412,1755425465952,-480.0,0.00021483,2]
[379861414,1755425465961,-1770.71,0.00021483,2]
[379861416,1755425465970,-480.0,0.00021483,2]
[379861418,1755425465980,-480.0,0.00021483,2]
[379861420,1755425465989,-186.9,0.00021483,2]
[379861422,1755425465998,-480.0,0.00021484,2]
[379861424,1755425466008,-480.0,0.00021484,2]
[379861426,1755425466017,-813.28,0.00021484,2]
[379861428,1755425466026,-480.76,0.00021484,2]
[379861429,1755425466036,-198.67497367,0.00021484,2]
[379861431,1755425466045,-459.28,0.00021484,2]
[379861433,1755425466054,-1763.29,0.00021484,2]
[379861435,1755425466064,-426.28,0.00021484,2]
[379861437,1755425466076,-480.0,0.00021484,2]
[379861439,1755425466086,-480.0,0.00021484,2]
[379861441,1755425466095,-597.18381141,0.00021484,2]
[379861474,1755425466940,-1034.00853371,0.00021484,2]
[379861483,1755425467022,481.69431838,0.00019567,2]
[379861486,1755425467051,422.45326088,0.00019566,2]
[379861509,1755425467292,5000.0,0.0001957,2]
[379861515,1755425467336,480.0,0.00019566,2]
[379861519,1755425467369,446.095749,0.00019047,2]
[379861532,1755425467501,480.0,0.00019567,2]
[379861541,1755425467586,480.0,0.00019565,2]
[379861547,1755425467635,480.0,0.00019566,2]
[379861557,1755425467733,480.0,0.00019569,2]
[379861561,1755425467766,480.0,0.00019566,2]
[379861576,1755425467906,480.0,0.00019566,2]
[379861581,1755425467948,480.0,0.00019568,2]
[379861587,1755425467996,168.0,0.00019526,2]
[379861591,1755425468031,150.0,0.0001906,2]
[379861596,1755425468074,480.0,0.00019565,2]
[379861601,1755425468108,400.0,0.00019566,2]
[379861618,1755425468279,464.18551693,0.00019565,2]
[379861625,1755425468337,480.0,0.00019566,2]
[379861630,1755425468375,505.12,0.00019565,2]
[379861642,1755425468489,10000.0,0.00027762,60]
[379861666,1755425468782,480.0,0.00019568,2]
[379861667,1755425468814,300.0,0.00019564,2]
[379861668,1755425468855,480.0,0.00019565,2]
[379861669,1755425468962,480.0,0.00019566,2]
[379861670,1755425469089,480.0,0.00019566,2]
[379861671,1755425469235,480.0,0.00019567,2]
[379861672,1755425469281,480.0,0.00019566,2]
[379861673,1755425469370,888.58,0.00019568,2]
[379861674,1755425469647,480.0,0.00019566,2]
[379861675,1755425469729,480.0,0.00019565,2]
[379861676,1755425469911,480.0,0.00019567,2]
[379861677,1755425469983,480.0,0.00019566,2]
[379861678,1755425470032,480.0,0.00019565,2]
[379861714,1755425471578,5256.78,0.00019566,2]
[379861715,1755425472031,480.0,0.00019567,2]
[379861716,1755425472316,880.63,0.00019565,2]
[379861717,1755425472353,480.0,0.00019568,2]
[379861728,1755425473158,480.0,0.00019566,2]
[379861729,1755425473302,480.0,0.00019566,2]
[379861730,1755425473505,572.73,0.00019565,2]
[379861731,1755425474361,480.0,0.00019567,2]
[379861732,1755425474918,480.0,0.00019566,2]
[379861733,1755425475377,480.0,0.00019566,2]
[379861734,1755425476086,480.0,0.00019568,2]
[379861735,1755425476114,480.0,0.00019567,2]
[379861736,1755425480188,480.0,0.00019569,2]
[379861737,1755425480217,480.0,0.00019565,2]
[379861738,1755425480785,480.0,0.00019568,2]
[379861739,1755425481566,5000.0,0.0001957,2]
[379861740,1755425484893,480.0,0.00019566,2]
[379861741,1755425486228,480.0,0.00019566,2]
[379861742,1755425486678,480.0,0.00019565,2]
[379861743,1755425486996,480.0,0.00019567,2]
[379861744,1755425487121,480.0,0.00019566,2]
[379861745,1755425488886,480.0,0.00019566,2]
[379861746,1755425489335,182.03440314,0.00019568,2]
[379861747,1755425489956,522.09,0.00019566,2]
[379861748,1755425490913,480.0,0.00019565,2]
[379861749,1755425490993,480.0,0.00019565,2]
[379861750,1755425491042,480.0,0.00019566,2]
[379861751,1755425491977,480.0,0.00019566,2]
[379861752,1755425492786,480.0,0.00019565,2]
[379861753,1755425493655,480.0,0.00019566,2]
[379861754,1755425494947,441.66460074,0.00019566,2]
[379861755,1755425495854,500.0,0.000191,2]
[379861756,1755425496106,480.0,0.00019567,2]
[379861757,1755425496392,480.0,0.00019566,2]
[379861758,1755425497289,480.0,0.00019567,2]
[379861759,1755425498274,480.0,0.00019566,2]
[379861760,1755425498618,3283.0236452,0.00019178,2]
[379861761,1755425499022,480.0,0.00019566,2]
[379861762,1755425499625,480.0,0.00019567,2]
[379861763,1755425499882,480.0,0.00019566,2]
[379861764,1755425500829,480.0,0.00019566,2]
[379861765,1755425501526,480.0,0.00019567,2]
[379861766,1755425501716,480.0,0.00019566,2]
[379861767,1755425503418,480.0,0.00019565,2]
[379861768,1755425504019,480.0,0.00019566,2]
[379861769,1755425505020,480.0,0.00019568,2]
[379861770,1755425505344,329.90867605,0.00019565,2]
[379861771,1755425507675,483.52891486,0.00019566,2]
[379861772,1755425507709,480.0,0.00019568,2]
[379861773,1755425508201,480.0,0.00019566,2]
[379861774,1755425510432,480.0,0.00019567,2]
[379861775,1755425511361,480.0,0.00019566,2]
[379861776,1755425511536,480.0,0.00019566,2]
[379861777,1755425514348,480.0,0.00019566,2]
[379861778,1755425515247,480.0,0.00019565,2]
[379861779,1755425515580,1113.12,0.00019568,2]
[379861780,1755425516196,480.0,0.00019567,2]
[379861781,1755425518181,480.0,0.00019567,2]
[379861782,1755425518816,1741.88050094,0.00019466,2]
[379861783,1755425518844,480.0,0.00019565,2]
[379861784,1755425520164,480.0,0.00019567,2]
[379861785,1755425520346,480.0,0.00019566,2]
[379861786,1755425520869,480.0,0.00019565,2]
[379861787,1755425521481,480.0,0.00019565,2]
[379861788,1755425522071,624.02,0.00019567,2]
[379861789,1755425523896,480.0,0.00019565,2]
[379861790,1755425526611,480.0,0.00019566,2]
[379861791,1755425527421,500.0,0.00018986,2]
[379861792,1755425528303,246.82,0.00019355,2]
[379861793,1755425529076,480.0,0.00019566,2]
[379861794,1755425532410,480.0,0.00019568,2]
[379861795,1755425532758,480.0,0.00019565,2]
[379861796,1755425533295,464.05715263,0.00019568,2]
[379861797,1755425533416,371.63816899,0.00019566,2]
[379861798,1755425534927,1251.66,0.00019565,2]
[379861799,1755425535681,480.0,0.00019566,2]
[379861800,1755425536062,480.0,0.00019566,2]
[379861801,1755425544242,480.0,0.00019566,2]
[379861802,1755425545844,441.60176092,0.00019566,2]
[379861803,1755425548558,480.0,0.00019566,2]
[379861804,1755425548833,480.0,0.00019566,2]
[379861805,1755425552685,1922.28,0.00019565,2]
[379861806,1755425554704,480.0,0.00019565,2]
[379861807,1755425556628,480.0,0.00019566,2]
[379861808,1755425556998,480.0,0.00019566,2]
[379861809,1755425557736,480.0,0.00019566,2]
[379861810,1755425559201,378.28,0.00019565,2]
[379861811,1755425560566,480.0,0.00019566,2]
[379861812,1755425561911,10000.0,0.00027762,60]
[379861813,1755425561979,480.0,0.00019567,2]
[379861814,1755425562441,461.78842275,0.00019566,2]
[379861815,1755425563937,482.78607282,0.00019568,2]
[379861816,1755425565527,480.0,0.00019565,2]
[379861817,1755425565583,2729.58,0.00019565,2]
[379861818,1755425569774,480.0,0.00019566,2]
[379861819,1755425571611,480.0,0.00019566,2]
[379861820,1755425572970,480.0,0.00019566,2]
[379861821,1755425573747,480.0,0.00019566,2]
[379861822,1755425573912,480.0,0.00019566,2]
[379861823,1755425574779,564.82181492,0.00019566,2]
[379861824,1755425576560,480.0,0.00019568,2]
[379861825,1755425576685,480.0,0.00019566,2]
[379861826,1755425577222,480.0,0.00019568,2]
[379861827,1755425578745,480.0,0.00019566,2]
[379861828,1755425579640,5728.14,0.00019567,2]
[379861829,1755425580343,1058.19,0.00019565,2]
[379861830,1755425580455,480.0,0.00019567,2]
[379861831,1755425581160,480.0,0.00019566,2]
[379861832,1755425581188,481.11003947,0.00019566,2]
[379861833,1755425582255,480.0,0.00019566,2]
[379861834,1755425590499,1069.3,0.00019566,2]
[379861835,1755425590548,480.0,0.00019565,2]
[379861836,1755425592365,460.42888464,0.00019566,2]
[379861837,1755425593352,480.0,0.00019566,2]
[379861838,1755425595374,385.77662344,0.00019566,2]
[379861839,1755425597126,173.74,0.00019565,2]
[379861840,1755425597491,480.0,0.00019568,2]
[379861841,1755425598636,480.0,0.00019566,2]
[379861842,1755425599410,480.0,0.00019568,2]
[379861843,1755425600774,894.47,0.00019566,2]
[379861844,1755425601322,480.0,0.00019566,2]
[379861845,1755425603914,480.0,0.00019566,2]
[379861846,1755425603948,666.0,0.00019178,2]
[379861847,1755425604848,480.0,0.00019566,2]
[379861848,1755425606478,480.0,0.00019565,2]
[379861849,1755425610844,480.0,0.00019566,2]
[379861850,1755425611656,480.0,0.00019565,2]
[379861851,1755425614519,480.0,0.00019566,2]
[379861852,1755425614885,480.0,0.00019568,2]
[379861853,1755425616814,477.78904969,0.00019566,2]
[379861854,1755425620116,480.0,0.00019566,2]
[379861855,1755425620894,480.0,0.00019566,2]
[379861856,1755425621107,480.0,0.00019565,2]
[379861857,1755425621145,243.68,0.00019351,2]
[379861858,1755425623581,480.0,0.00019566,2]
[379861859,1755425623722,25683.5889137,0.0001884,2]
[379861860,1755425624564,258.63997944,0.00019566,2]
[379861861,1755425636669,480.0,0.00019567,2]
[379861862,1755425637010,480.0,0.00019566,2]
[379861863,1755425639463,480.0,0.00019565,2]
[379861864,1755425639498,480.0,0.00019568,2]
[379861865,1755425640360,480.0,0.00019566,2]
[379861866,1755425640471,480.0,0.00019566,2]
[379861867,1755425640829,480.0,0.00019566,2]
[379861868,1755425642386,550.08,0.00019566,2]
[379861869,1755425642898,480.0,0.00019565,2]
[379861870,1755425645485,655.77,0.00019567,2]
[379861871,1755425648352,673.4,0.00019565,2]